bitfinex/quotes_BTCUSD_20241211
["timestamp","ask_amount","ask_price","bid_price","bid_amount"]
[1733931845451,0.200643,100180.0,100140.0,0.24986]
[1733931845452,0.399341,100170.0,100140.0,0.24986]
[1733931845661,0.10030845,100160.0,100150.0,0.31894885]
[1733931846300,0.01966365,100170.0,100160.0,0.15]
[1733931846568,0.2,100200.0,100180.0,0.099819]
[1733931846796,0.10030845,100190.0,100180.0,0.15]
[1733931847001,0.10086123,100190.0,100180.0,0.15]
[1733931847865,0.10086123,100190.0,100180.0,0.32494885]
[1733931847866,0.12069055,100190.0,100180.0,0.32494885]
[1733931848075,0.14369055,100190.0,100180.0,0.47346885]
[1733931848304,0.0203821,100190.0,100180.0,1.0872977]
[1733931848516,0.1826821,100200.0,100190.0,0.09981]
[1733931848732,0.28299055,100200.0,100190.0,0.56875885]
[1733931850209,0.1836821,100200.0,100190.0,0.96392435]
[1733931850419,0.1836821,100200.0,100190.0,0.57375885]
[1733931850622,0.1836821,100200.0,100190.0,0.57575885]
[1733931851881,0.2066821,100200.0,100190.0,0.57575885]
[1733931853124,0.30699055,100200.0,100190.0,0.157]
[1733931853333,0.30699055,100200.0,100190.0,0.57575885]
[1733931853748,0.23799054,100200.0,100190.0,0.57575885]
[1733931854162,0.23799054,100200.0,100190.0,0.42575885]
[1733931854385,0.23799054,100200.0,100190.0,0.57575885]
[1733931854798,0.23799054,100200.0,100190.0,0.157]
[1733931855215,0.23799054,100200.0,100190.0,0.42575885]
[1733931855419,0.13768209,100200.0,100190.0,0.42575885]
[1733931855631,0.13768209,100200.0,100190.0,0.57575885]
[1733931856053,0.11468209,100200.0,100190.0,0.6760673]
[1733931856280,0.11468209,100200.0,100190.0,2.5809673]
[1733931856939,0.11468209,100200.0,100190.0,0.70365885]
[1733931857359,0.11468209,100200.0,100190.0,0.70165885]
[1733931857564,0.11468209,100200.0,100190.0,0.69665885]
[1733931857565,0.13868209,100200.0,100190.0,0.69665885]
[1733931857771,0.14268209,100200.0,100190.0,0.69665885]
[1733931858640,0.11568209,100200.0,100190.0,0.69665885]
[1733931858849,0.04468208,100200.0,100190.0,0.69665885]
[1733931859054,0.04468208,100200.0,100190.0,5.53865885]
[1733931859288,0.05168208,100200.0,100190.0,3.03765885]
[1733931859557,0.07468208,100200.0,100190.0,0.69765885]
[1733931859969,0.08368208,100200.0,100190.0,0.69865885]
[1733931860385,0.06068208,100200.0,100190.0,0.69865885]
[1733931860813,0.08368208,100200.0,100190.0,0.69865885]
[1733931863798,0.01468207,100200.0,100190.0,0.69865885]
[1733931865507,0.5438,100210.0,100200.0,0.3998]
[1733931865725,0.5438,100210.0,100200.0,0.56874885]
[1733931865931,0.5668,100210.0,100200.0,0.41874885]
[1733931866114,0.5668,100210.0,100200.0,0.56874885]
[1733931866592,0.023,100210.0,100200.0,0.57174885]
[1733931867149,0.023,100210.0,100200.0,0.42674885]
[1733931867414,0.023,100210.0,100200.0,0.57674885]
[1733931867637,0.023,100210.0,100200.0,0.42674885]
[1733931867901,0.023,100210.0,100200.0,0.57674885]
[1733931868542,0.5438,100220.0,100210.0,0.39979]
[1733931868543,0.5668,100220.0,100210.0,0.39979]
[1733931868765,0.59810844,100220.0,100210.0,0.56873885]
[1733931869684,0.02012954,100230.0,100220.0,0.1297]
[1733931869946,0.02012954,100230.0,100220.0,0.54842885]
[1733931870836,0.02012954,100230.0,100220.0,0.54942885]
[1733931871064,0.02316579,100230.0,100220.0,0.54942885]
[1733931871314,0.02316579,100230.0,100220.0,0.54842885]
[1733931872550,0.03116579,100230.0,100220.0,0.54942885]
[1733931873147,0.00816579,100230.0,100220.0,0.54942885]
[1733931873805,0.10847424,100230.0,100220.0,0.54942885]
[1733931874432,0.10847424,100230.0,100220.0,0.44964885]
[1733931874636,0.10847424,100230.0,100220.0,0.54942885]
[1733931874842,0.13147424,100230.0,100220.0,0.54942885]
[1733931875679,0.60627423,100230.0,100220.0,0.36894885]
[1733931876090,0.60627423,100230.0,100220.0,0.37394885]
[1733931876297,0.60627423,100230.0,100220.0,0.47372885]
[1733931877586,0.60627423,100230.0,100220.0,0.46872885]
[1733931877994,0.61127423,100230.0,100220.0,0.46872885]
[1733931878442,0.58827423,100230.0,100220.0,0.46872885]
[1733931878654,0.03616579,100230.0,100220.0,0.55092885]
[1733931880946,0.03616579,100230.0,100220.0,1.18627173]
[1733931880947,7.9e-07,100230.0,100220.0,1.18627173]
[1733931881159,0.0004,100250.0,100240.0,0.4225]
[1733931881368,0.0004,100250.0,100240.0,1.71662045]
[1733931881584,0.0004,100250.0,100240.0,1.72162045]
[1733931882210,0.0004,100250.0,100240.0,0.69062045]
[1733931882438,0.0004,100250.0,100240.0,0.69662045]
[1733931883026,0.0004,100250.0,100240.0,0.63428164]
[1733931883238,0.0004,100250.0,100240.0,0.63428379]
[1733931883683,0.72977408,100270.0,100250.0,0.15]
[1733931883896,0.83008253,100270.0,100260.0,0.25602379]
[1733931884102,0.83008253,100270.0,100260.0,0.31839054]
[1733931884523,0.28628253,100270.0,100260.0,0.31839054]
[1733931885184,0.28644847,100270.0,100260.0,0.31839054]
[1733931885815,0.30944847,100270.0,100260.0,0.31839054]
[1733931886065,0.31544847,100270.0,100260.0,0.31839054]
[1733931886275,0.30944847,100270.0,100260.0,0.31839054]
[1733931886482,0.85324847,100270.0,100260.0,0.31939054]
[1733931886694,0.85924847,100270.0,100260.0,0.31939054]
[1733931887336,0.51490947,100270.0,100260.0,0.151]
[1733931887973,0.51490947,100270.0,100260.0,0.15092712]
[1733931888174,0.51490947,100270.0,100260.0,0.001]
[1733931889041,0.023,100260.0,100240.0,0.29089054]
[1733931889257,0.12330845,100250.0,100240.0,0.1225]
[1733931889903,0.12330845,100250.0,100240.0,0.0462]
[1733931891379,0.12330845,100250.0,100240.0,0.1962]
[1733931891587,0.12330845,100250.0,100240.0,0.36459054]
[1733931891786,0.12530845,100250.0,100240.0,0.36459054]
[1733931892398,0.13030845,100250.0,100240.0,0.36459054]
[1733931892822,0.10730845,100250.0,100240.0,1.08131327]
[1733931893031,0.007,100250.0,100240.0,1.08131327]
[1733931893450,0.10730845,100250.0,100240.0,0.2751]
[1733931893655,0.10730845,100250.0,100240.0,0.15]
[1733931893870,0.03830844,100250.0,100240.0,0.15]
[1733931894078,0.23780944,100250.0,100240.0,0.15]
[1733931894287,0.5438,100240.0,100230.0,0.16839054]
[1733931894498,0.64410845,100240.0,100220.0,1.03248742]
[1733931894696,0.64410845,100240.0,100230.0,0.16839054]
[1733931894907,0.66710845,100240.0,100230.0,0.16839054]
[1733931895344,0.66710845,100240.0,100230.0,0.26816054]
[1733931895555,0.5438,100240.0,100230.0,0.56816054]
[1733931895758,0.5438,100240.0,100230.0,0.95760442]
[1733931896167,0.5478,100240.0,100230.0,0.95760442]
[1733931896780,0.5478,100240.0,100230.0,0.64676054]
[1733931897219,0.5478,100240.0,100230.0,0.69566054]
[1733931897657,0.5498,100240.0,100230.0,0.69566054]
[1733931898867,0.47479999,100240.0,100230.0,0.69566054]
[1733931899607,0.49779999,100260.0,100250.0,0.09975]
[1733931899807,0.59810844,100260.0,100250.0,0.41814054]
[1733931900222,0.47479999,100260.0,100250.0,0.64854054]
[1733931900618,0.47479999,100260.0,100250.0,1.03838886]
[1733931901602,0.47879999,100260.0,100250.0,1.03838886]
[1733931902156,0.47879999,100260.0,100250.0,1.47001412]
[1733931902355,0.47879999,100260.0,100250.0,1.08681757]
[1733931902585,0.012,100260.0,100250.0,1.23781757]
[1733931902792,0.008,100260.0,100250.0,1.33812602]
[1733931903030,0.008,100260.0,100250.0,6.38812602]
[1733931903147,0.002,100260.0,100250.0,6.38712602]
[1733931903353,0.18614002,100270.0,100250.0,6.00958933]
[1733931903552,0.18614002,100270.0,100260.0,5.07776259]
[1733931903857,22.65396116,100280.0,100270.0,0.77613]
[1733931904063,22.53840637,100280.0,100270.0,1.19475259]
[1733931904274,21.52792803,100280.0,100270.0,7.62632849]
[1733931904481,19.95002803,100280.0,100270.0,7.23714471]
[1733931904663,19.95002803,100280.0,100270.0,7.35979431]
[1733931904664,16.60295905,100280.0,100270.0,7.35979431]
[1733931904908,15.16365905,100280.0,100270.0,7.19994471]
[1733931905133,15.06005239,100280.0,100270.0,6.49755122]
[1733931905351,15.05401177,100280.0,100270.0,6.564171]
[1733931905568,15.05401177,100280.0,100270.0,6.06187333]
[1733931905787,15.05401177,100280.0,100270.0,1.11293954]
[1733931906008,15.05401177,100280.0,100270.0,1.10793954]
[1733931906226,15.07701177,100280.0,100270.0,0.26344587]
[1733931906460,15.07801177,100280.0,100270.0,0.43391522]
[1733931906680,15.07801177,100280.0,100270.0,0.27691522]
[1733931906903,0.023,100270.0,100260.0,0.51781816]
[1733931907123,0.023,100270.0,100260.0,0.34963294]
[1733931907331,0.1025,100270.0,100260.0,0.51781816]
[1733931908023,0.1025,100270.0,100260.0,0.34963294]
[1733931908229,0.1025,100270.0,100260.0,0.66781816]
[1733931908920,15.13932021,100280.0,100270.0,0.41891522]
[1733931909126,15.00801176,100280.0,100270.0,0.56791522]
[1733931909332,15.00801176,100280.0,100270.0,5.86822367]
[1733931909542,15.00801176,100280.0,100270.0,6.26822367]
[1733931909543,14.90829176,100280.0,100270.0,6.26822367]
[1733931909750,14.90829176,100280.0,100270.0,6.44396929]
[1733931909751,14.9045941,100280.0,100270.0,6.44396929]
[1733931910197,14.9045941,100280.0,100270.0,6.44896929]
[1733931910402,14.9045941,100280.0,100270.0,6.42322367]
[1733931910607,14.9045941,100280.0,100270.0,6.33382367]
[1733931911254,14.90084842,100280.0,100270.0,6.33382367]
[1733931911687,14.89468037,100280.0,100270.0,6.32882367]
[1733931911887,14.89468037,100280.0,100270.0,6.32382367]
[1733931912090,14.89468037,100280.0,100270.0,6.32882367]
[1733931912295,14.89568037,100280.0,100270.0,6.33782367]
[1733931912501,14.89468037,100280.0,100270.0,6.32382367]
[1733931912932,14.89468037,100280.0,100270.0,6.33182367]
[1733931913141,14.89468037,100280.0,100270.0,6.51974039]
[1733931913142,14.75507237,100280.0,100270.0,6.51974039]
[1733931913344,14.7491903,100280.0,100270.0,6.66532941]
[1733931913550,14.7491903,100280.0,100270.0,6.36919923]
[1733931913766,14.67605238,100280.0,100270.0,6.35755517]
[1733931913976,14.67605238,100280.0,100270.0,0.78751522]
[1733931914192,14.77636083,100280.0,100270.0,0.014]
[1733931914617,14.79936083,100280.0,100270.0,0.28191522]
[1733931915042,14.79936083,100280.0,100270.0,0.43191522]
[1733931915223,14.67505238,100280.0,100270.0,0.57291522]
[1733931915469,14.67505238,100280.0,100270.0,5.74722367]
[1733931915679,14.67905238,100280.0,100270.0,6.13029282]
[1733931915885,14.67445563,100280.0,100270.0,6.28029282]
[1733931916310,14.68045563,100280.0,100270.0,6.28129282]
[1733931916524,14.67245563,100280.0,100270.0,6.28029282]
[1733931916760,14.67245563,100280.0,100270.0,6.28829282]
[1733931917179,14.67245563,100280.0,100270.0,6.28029282]
[1733931917835,14.57273563,100280.0,100270.0,6.04222367]
[1733931918069,14.53284763,100280.0,100270.0,6.06786773]
[1733931918309,14.51290363,100280.0,100270.0,6.06786773]
[1733931918748,14.44390362,100280.0,100270.0,6.06487773]
[1733931918956,14.44390362,100280.0,100270.0,6.06987773]
[1733931919159,14.36412762,100280.0,100270.0,6.07287773]
[1733931919363,14.32423962,100280.0,100270.0,6.06787773]
[1733931919782,14.32423962,100280.0,100270.0,6.04723367]
[1733931920201,14.22037148,100280.0,100270.0,6.58019142]
[1733931920414,14.21372711,100280.0,100270.0,6.60583548]
[1733931920627,14.21372711,100280.0,100270.0,6.22287773]
[1733931920839,14.20859217,100280.0,100270.0,6.22287773]
[1733931921052,14.18864817,100280.0,100270.0,6.22287773]
[1733931921259,14.0959158,100280.0,100270.0,6.07287773]
[1733931921439,14.0959158,100280.0,100270.0,6.04723367]
[1733931921692,14.0959158,100280.0,100270.0,5.74723367]
[1733931921908,14.09198935,100280.0,100270.0,6.04723367]
[1733931922744,14.09198935,100280.0,100270.0,6.06751424]
[1733931923377,14.09198935,100280.0,100270.0,6.45047199]
[1733931923378,13.99226935,100280.0,100270.0,6.45047199]
[1733931923593,13.98495403,100280.0,100270.0,6.45047199]
[1733931923801,13.98112037,100280.0,100270.0,6.06751424]
[1733931924004,13.89217636,100280.0,100270.0,5.76751424]
[1733931924213,13.81240036,100280.0,100270.0,6.06751424]
[1733931924417,13.81240036,100280.0,100270.0,5.76751424]
[1733931924620,13.81240036,100280.0,100270.0,1.09351424]
[1733931924825,13.81240036,100280.0,100270.0,6.14351424]
[1733931925010,13.75256836,100280.0,100270.0,5.99351424]
[1733931925346,13.71268036,100280.0,100270.0,6.29351424]
[1733931925789,13.70385114,100280.0,100270.0,6.29351424]
[1733931926009,13.70385114,100280.0,100270.0,5.99351424]
[1733931926219,13.70385114,100280.0,100270.0,5.35531238]
[1733931926858,13.72685114,100280.0,100270.0,2.25431238]
[1733931927066,13.72685114,100280.0,100270.0,0.96101817]
[1733931927280,13.77665114,100280.0,100270.0,0.57300393]
[1733931927494,13.77665114,100280.0,100270.0,0.27300393]
[1733931927735,13.77665114,100280.0,100270.0,0.57300393]
[1733931928006,13.70385114,100280.0,100270.0,3.90032662]
[1733931928230,13.70385114,100280.0,100270.0,3.50731238]
[1733931928440,13.70385114,100280.0,100270.0,3.89545242]
[1733931928657,13.70385114,100280.0,100270.0,4.04243008]
[1733931928869,13.59496313,100280.0,100270.0,4.04243008]
[1733931929086,13.57501913,100280.0,100270.0,3.65431238]
[1733931929287,13.57501913,100280.0,100270.0,3.82916847]
[1733931931258,13.57501913,100280.0,100270.0,3.94574099]
[1733931931461,13.59801913,100280.0,100270.0,1.65674099]
[1733931931687,13.59801913,100280.0,100270.0,1.828301]
[1733931931927,13.59801913,100280.0,100270.0,1.928301]
[1733931931928,13.57501913,100280.0,100270.0,1.928301]
[1733931932768,13.57501913,100280.0,100270.0,1.75674099]
[1733931932972,13.57501913,100280.0,100270.0,1.54016847]
[1733931933186,13.59801913,100280.0,100270.0,1.08360846]
[1733931933391,13.68081913,100280.0,100270.0,1.23360846]
[1733931933597,13.68081913,100280.0,100270.0,1.40516847]
[1733931933808,13.61181912,100280.0,100270.0,1.40516847]
[1733931934052,13.61181912,100280.0,100270.0,1.23360846]
[1733931934259,13.61181912,100280.0,100270.0,1.40516847]
[1733931934477,13.61181912,100280.0,100270.0,1.62174099]
[1733931934684,13.61181912,100280.0,100270.0,1.40516847]
[1733931935098,13.61181912,100280.0,100270.0,1.23360846]
[1733931935322,13.61181912,100280.0,100270.0,1.08360846]
[1733931935526,13.61181912,100280.0,100270.0,1.22143254]
[1733931935736,13.61181912,100280.0,100270.0,0.56830001]
[1733931936146,13.61181912,100280.0,100270.0,5.89016847]
[1733931936365,13.50108089,100280.0,100270.0,6.378301]
[1733931936596,13.50108089,100280.0,100270.0,5.99016847]
[1733931937035,13.50108089,100280.0,100270.0,6.14016847]
[1733931937258,13.49840113,100280.0,100270.0,6.04016847]
[1733931937467,13.49554989,100280.0,100270.0,5.05516847]
[1733931937685,13.48975572,100280.0,100270.0,4.51616847]
[1733931938125,13.49575572,100280.0,100270.0,4.51616847]
[1733931938327,13.49175572,100280.0,100270.0,4.51616847]
[1733931938531,13.48975572,100280.0,100270.0,4.51616847]
[1733931938756,13.42075571,100280.0,100270.0,4.61616847]
[1733931939420,13.32103571,100280.0,100270.0,5.51225138]
[1733931940037,13.32103571,100280.0,100270.0,4.91903298]
[1733931940243,13.32103571,100280.0,100270.0,4.49995007]
[1733931940892,13.32103571,100280.0,100270.0,4.79603298]
[1733931941098,13.31618417,100280.0,100270.0,4.79603298]
[1733931941945,13.30157993,100280.0,100270.0,6.44303298]
[1733931943002,13.30157993,100280.0,100270.0,6.46311705]
[1733931943214,13.20185993,100280.0,100270.0,7.16311705]
[1733931943449,13.20185993,100280.0,100270.0,6.86703414]
[1733931943669,13.18312753,100280.0,100270.0,6.86703414]
[1733931943885,13.08483441,100280.0,100270.0,6.98876839]
[1733931944099,12.52865771,100280.0,100270.0,8.20750593]
[1733931944339,12.17032414,100280.0,100270.0,7.73207958]
[1733931944550,12.13455664,100280.0,100270.0,2.68207958]
[1733931944767,12.13455664,100280.0,100270.0,2.69607958]
[1733931944768,12.07604066,100280.0,100270.0,2.69607958]
[1733931944973,12.07704066,100280.0,100270.0,2.69607958]
[1733931945181,11.75852551,100280.0,100270.0,3.20065706]
[1733931945383,11.7079828,100280.0,100270.0,2.69107958]
[1733931945615,11.39847243,100280.0,100270.0,2.70007958]
[1733931945822,11.31914984,100280.0,100270.0,2.69107958]
[1733931946028,11.2474475,100280.0,100270.0,3.17545449]
[1733931946231,11.2085595,100280.0,100270.0,2.70007958]
[1733931946437,11.2085595,100280.0,100270.0,3.17528861]
[1733931946648,11.1795545,100280.0,100270.0,3.17528861]
[1733931947120,11.0997785,100280.0,100270.0,3.16628861]
[1733931947323,11.0798345,100280.0,100270.0,3.17528861]
[1733931947740,11.07160591,100280.0,100270.0,3.17528861]
[1733931947948,11.07160591,100280.0,100270.0,6.27229387]
[1733931948166,10.97188591,100280.0,100270.0,5.84198438]
[1733931948375,10.97188591,100280.0,100270.0,6.3176262]
[1733931948584,10.97188591,100280.0,100270.0,6.32281616]
[1733931948792,10.97188591,100280.0,100270.0,5.83817434]
[1733931949006,10.9474464,100280.0,100270.0,5.848778]
[1733931949215,10.86419215,100280.0,100270.0,5.98817434]
[1733931949442,10.79519214,100280.0,100270.0,6.46380446]
[1733931949656,10.78818423,100280.0,100270.0,6.45476156]
[1733931949883,10.78818423,100280.0,100270.0,6.00217434]
[1733931950087,10.72835223,100280.0,100270.0,5.97917434]
[1733931950295,10.68454335,100280.0,100270.0,5.98817434]
[1733931950515,10.68454335,100280.0,100270.0,6.46373041]
[1733931950742,10.66643318,100280.0,100270.0,6.46346954]
[1733931950967,10.66743318,100280.0,100270.0,6.46346954]
[1733931951172,10.56771318,100280.0,100270.0,6.47241975]
[1733931952014,10.54776918,100280.0,100270.0,6.47241975]
[1733931952222,10.46799318,100280.0,100270.0,6.47241975]
[1733931952430,10.46306803,100280.0,100270.0,3.10741975]
[1733931952631,10.46306803,100280.0,100270.0,8.15741975]
[1733931953033,10.44312403,100280.0,100270.0,8.15741975]
[1733931953241,10.40323603,100280.0,100270.0,9.40359066]
[1733931953500,10.36334803,100280.0,100270.0,9.40359066]
[1733931953927,9.81950137,100280.0,100270.0,3.39539274]
[1733931954135,9.71583686,100280.0,100270.0,2.6055252]
[1733931954344,9.68985883,100280.0,100270.0,3.63668328]
[1733931954584,9.68985883,100280.0,100270.0,3.0304124]
[1733931954818,9.68985883,100280.0,100270.0,3.65545389]
[1733931955036,9.20957317,100280.0,100270.0,3.1804124]
[1733931955245,9.13277619,100280.0,100270.0,3.1804124]
[1733931955451,9.11177619,100280.0,100270.0,3.1804124]
[1733931955667,9.1081339,100280.0,100270.0,3.1804124]
[1733931956105,9.0881899,100280.0,100270.0,3.1804124]
[1733931956312,8.89639282,100280.0,100270.0,3.69898988]
[1733931956518,8.44860961,100280.0,100270.0,3.1804124]
[1733931956723,8.44860961,100280.0,100270.0,3.65499849]
[1733931956936,8.44860961,100280.0,100270.0,3.6804124]
[1733931957146,8.40872161,100280.0,100270.0,3.6804124]
[1733931957354,8.31418478,100280.0,100270.0,4.15497713]
[1733931957771,8.28452247,100280.0,100270.0,4.15497713]
[1733931957978,8.27876802,100280.0,100270.0,4.15497713]
[1733931958182,8.03309542,100280.0,100270.0,3.6804124]
[1733931958392,8.01315142,100280.0,100270.0,4.15497713]
[1733931958830,7.92535631,100280.0,100270.0,4.15497713]
[1733931959041,7.67776739,100280.0,100270.0,3.6804124]
[1733931959251,7.40092612,100280.0,100270.0,4.5395124]
[1733931959467,7.31982536,100280.0,100270.0,4.5395124]
[1733931959722,6.87748882,100280.0,100270.0,5.30779331]
[1733931959930,6.38624036,100280.0,100270.0,4.53079331]
[1733931960143,6.1060025,100280.0,100270.0,5.00492048]
[1733931960347,5.97990226,100280.0,100270.0,4.97962048]
[1733931960553,5.97480755,100280.0,100270.0,4.98862048]
[1733931960732,5.93615378,100280.0,100270.0,4.52349331]
[1733931960971,5.64915208,100280.0,100270.0,5.04207079]
[1733931961183,5.46143247,100280.0,100270.0,4.53079331]
[1733931961382,5.46143247,100280.0,100270.0,4.51290924]
[1733931961383,2.71531988,100280.0,100270.0,4.51290924]
[1733931961589,0.35201262,100280.0,100270.0,4.51290924]
[1733931961801,0.0004,100310.0,100300.0,1.123]
[1733931962019,0.5442,100390.0,100370.0,2.72828541]
[1733931962020,0.038,100380.0,100370.0,2.72828541]
[1733931962235,0.038,100380.0,100370.0,2.89984542]
[1733931962474,0.038,100380.0,100370.0,2.90511449]
[1733931963109,0.0155536,100380.0,100370.0,3.10542294]
[1733931963329,0.0055536,100380.0,100370.0,3.10542294]
[1733931963779,0.49871215,100400.0,100390.0,0.15]
[1733931963984,0.49887817,100400.0,100390.0,2.30018541]
[1733931964199,0.49887817,100400.0,100390.0,2.30544939]
[1733931964411,0.52187817,100400.0,100390.0,2.17734939]
[1733931964622,0.52183817,100400.0,100390.0,2.15214613]
[1733931964882,0.82134962,100400.0,100390.0,1.99594613]
[1733931965097,0.32267747,100400.0,100390.0,1.74061433]
[1733931965302,0.32367747,100400.0,100390.0,1.56277206]
[1733931965521,0.64523748,100400.0,100390.0,1.13439514]
[1733931965739,0.199245,100380.0,100350.0,0.13145392]
[1733931965957,0.023,100370.0,100340.0,0.15]
[1733931966464,0.023,100370.0,100350.0,0.10030845]
[1733931966483,0.023,100370.0,100340.0,1.15230845]
[1733931966690,0.12330845,100370.0,100350.0,0.17156001]
[1733931966896,0.12330845,100370.0,100360.0,0.15]
[1733931967109,0.12330845,100370.0,100360.0,0.17156001]
[1733931967312,0.12330845,100370.0,100360.0,0.32156001]
[1733931967557,0.12330845,100370.0,100360.0,0.15]
[1733931968393,0.028,100370.0,100360.0,0.32156001]
[1733931968816,0.023,100390.0,100360.0,0.32156001]
[1733931969055,0.10030845,100380.0,100360.0,0.32211361]
[1733931969269,0.10030845,100380.0,100360.0,0.0005536]
[1733931969478,0.10030845,100380.0,100360.0,0.17211361]
[1733931970775,0.5668,100370.0,100360.0,0.32611361]
[1733931970993,0.5668,100370.0,100360.0,0.1545536]
[1733931971198,0.5668,100370.0,100360.0,0.1505536]
[1733931971642,0.13230845,100370.0,100360.0,0.0065536]
[1733931971848,0.33157045,100370.0,100360.0,0.0065536]
[1733931972055,0.33157045,100370.0,100360.0,0.0005536]
[1733931972494,0.32257045,100370.0,100360.0,0.0005536]
[1733931972722,0.32257045,100370.0,100320.0,0.31904733]
[1733931972723,0.023,100350.0,100320.0,0.31904733]
[1733931972928,0.023,100350.0,100330.0,0.3]
[1733931973634,0.023,100350.0,100330.0,0.15]
[1733931973840,0.05430844,100340.0,100310.0,0.02]
[1733931974078,0.5438,100330.0,100310.0,0.02]
[1733931974301,0.64410845,100330.0,100310.0,0.02]
[1733931975393,0.64466058,100330.0,100310.0,0.02]
[1733931975600,0.64966058,100330.0,100310.0,0.02]
[1733931975810,0.023,100320.0,100310.0,0.02]
[1733931976242,0.56835213,100330.0,100320.0,0.15]
[1733931976460,0.54535213,100330.0,100320.0,0.15]
[1733931976663,0.54735213,100330.0,100320.0,0.15]
[1733931977082,0.67066058,100330.0,100320.0,0.15]
[1733931977295,0.66866058,100330.0,100310.0,0.174]
[1733931977503,0.66866058,100330.0,100320.0,0.004]
[1733931977719,0.54435213,100330.0,100320.0,0.17556001]
[1733931977922,0.00055213,100330.0,100320.0,3.08742847]
[1733931978134,0.00055213,100330.0,100320.0,3.63742847]
[1733931978344,0.00055213,100330.0,100320.0,4.02124359]
[1733931978557,0.00055213,100330.0,100320.0,4.01062847]
[1733931978770,0.47535212,100370.0,100350.0,0.3]
[1733931978986,0.47535212,100370.0,100360.0,0.15]
[1733931980257,0.47535212,100370.0,100360.0,0.15016602]
[1733931980665,0.59866057,100370.0,100360.0,0.00016602]
[1733931980868,0.12326845,100370.0,100360.0,0.00016602]
[1733931981074,0.12426845,100370.0,100360.0,0.00016602]
[1733931981506,0.12926845,100370.0,100360.0,0.00116602]
[1733931981700,0.12926845,100370.0,100360.0,0.00016602]
[1733931981701,0.12326845,100370.0,100360.0,0.00016602]
[1733931982116,0.12326845,100370.0,100360.0,0.00216602]
[1733931982323,0.12326845,100370.0,100360.0,0.00016602]
[1733931982734,0.12426845,100370.0,100360.0,0.00716602]
[1733931982957,0.32353045,100370.0,100360.0,0.00716602]
[1733931983163,0.12426845,100370.0,100360.0,0.00716602]
[1733931983599,0.12426845,100370.0,100360.0,0.15716602]
[1733931983810,0.12426845,100370.0,100360.0,0.01116602]
[1733931986796,0.024,100370.0,100360.0,0.16116602]
[1733931987009,0.001,100370.0,100360.0,0.33272603]
[1733931987650,0.001,100370.0,100360.0,0.16116602]
[1733931988720,0.35358941,100390.0,100360.0,0.54959511]
[1733931988923,0.12330845,100380.0,100360.0,0.54959511]
[1733931989386,0.12330845,100380.0,100360.0,0.16116602]
[1733931990032,0.222262,100370.0,100360.0,0.00716602]
[1733931990243,0.32257045,100370.0,100360.0,0.00016602]
[1733931990719,0.32257045,100370.0,100360.0,0.00416602]
[1733931990933,0.32257045,100370.0,100360.0,0.00016602]
[1733931991138,0.32357045,100370.0,100360.0,0.00916602]
[1733931991343,0.34322425,100370.0,100360.0,0.00916602]
[1733931991550,0.34322425,100370.0,100360.0,0.00816602]
[1733931991999,0.34322425,100370.0,100360.0,0.01216602]
[1733931994201,0.44802425,100370.0,100360.0,0.01216602]
[1733931995061,0.199342,100330.0,100320.0,0.38898129]
[1733931995266,0.12330845,100330.0,100320.0,0.38898129]
[1733931995474,0.32265045,100330.0,100320.0,0.38898129]
[1733931995673,0.32265045,100330.0,100310.0,0.5805413]
[1733931995871,0.32265045,100330.0,100320.0,0.38898129]
[1733931996223,0.32265045,100330.0,100310.0,0.5805413]
[1733931996413,0.32276049,100330.0,100320.0,0.15]
[1733931997177,0.34286405,100330.0,100320.0,0.15]
[1733931997567,0.35186405,100330.0,100320.0,0.151]
[1733931998493,0.35786405,100330.0,100320.0,0.151]
[1733931998837,0.31186404,100330.0,100320.0,0.151]
[1733931999253,0.0352136,100330.0,100320.0,0.32256001]
[1733932000371,0.01511004,100330.0,100320.0,0.32256001]
[1733932000596,0.01511004,100330.0,100320.0,0.32923535]
[1733932001232,0.01511004,100330.0,100320.0,0.15767534]
[1733932001432,0.13841849,100330.0,100320.0,0.15767534]
[1733932001639,0.01511004,100330.0,100320.0,0.15767534]
[1733932001844,0.31476049,100330.0,100320.0,0.15767534]
[1733932002698,0.31476049,100330.0,100320.0,0.00767534]
[1733932003631,0.01511004,100330.0,100320.0,0.32923535]
[1733932004041,0.01511004,100330.0,100320.0,0.15767534]
[1733932004243,0.13841849,100330.0,100320.0,0.15767534]
[1733932004669,0.13841849,100330.0,100320.0,0.32923535]
[1733932004670,0.55891004,100330.0,100320.0,0.32923535]
[1733932007575,0.68221849,100330.0,100320.0,0.15767534]
[1733932007787,0.13841849,100330.0,100320.0,0.15767534]
[1733932008188,0.33776049,100330.0,100320.0,0.15767534]
[1733932008601,0.33776049,100330.0,100320.0,0.00767534]
[1733932013423,0.33776049,100330.0,100310.0,0.02]
[1733932013424,0.023,100320.0,100310.0,0.02]
[1733932013635,0.12330845,100320.0,100310.0,0.02]
[1733932015217,0.12430845,100320.0,100310.0,0.34656001]
[1733932015419,0.10130845,100320.0,100310.0,0.35056001]
[1733932015637,0.10030845,100320.0,100310.0,0.174]
[1733932015837,0.10130845,100320.0,100310.0,0.179]
[1733932016067,0.10130845,100320.0,100310.0,0.175]
[1733932016274,0.10030845,100320.0,100310.0,0.17]
[1733932017318,0.10130845,100320.0,100310.0,0.179]
[1733932017490,0.10230845,100320.0,100310.0,0.179]
[1733932017694,0.12530845,100320.0,100310.0,0.029]
[1733932017898,0.12430845,100320.0,100310.0,0.02]
[1733932018276,0.12430845,100320.0,100310.0,0.025]
[1733932018852,0.12430845,100320.0,100310.0,0.02]
[1733932019057,0.12430845,100320.0,100310.0,0.023]
[1733932019262,0.32367045,100320.0,100310.0,0.023]
[1733932019475,0.32267045,100320.0,100310.0,0.023]
[1733932019951,0.199441,100280.0,100270.0,0.0004]
[1733932020131,0.199441,100280.0,100260.0,0.20076001]
[1733932020132,0.49920645,100280.0,100260.0,0.20076001]
[1733932020349,0.49920645,100280.0,100260.0,0.0292]
[1733932020558,0.49920445,100280.0,100260.0,0.20076001]
[1733932020742,0.49920445,100280.0,100250.0,0.17196001]
[1733932020743,0.398947,100270.0,100250.0,0.17196001]
[1733932020987,0.398947,100270.0,100250.0,0.32196001]
[1733932021199,0.398947,100270.0,100250.0,0.17251214]
[1733932021401,0.49925545,100270.0,100250.0,0.17251214]
[1733932021552,0.49925545,100270.0,100260.0,0.002]
[1733932022109,0.50525545,100270.0,100250.0,0.17251214]
[1733932022334,0.12330845,100260.0,100250.0,0.00095213]
[1733932023061,0.12330845,100260.0,100250.0,0.17251214]
[1733932023285,0.12330845,100260.0,100250.0,0.00095213]
[1733932023761,0.05430844,100260.0,100250.0,0.00095213]
[1733932024191,0.4195645,100270.0,100250.0,0.17851214]
[1733932024399,0.52087295,100270.0,100250.0,0.17851214]
[1733932024606,0.51987295,100270.0,100250.0,0.00695213]